bitfinex/quotes_SOLUSD_20251019
["timestamp","ask_amount","ask_price","bid_price","bid_amount"]
[1760876604188,0.2,188.78,188.74,16.17464072]
[1760876604391,0.2,188.78,188.74,16.89464072]
[1760876604588,0.2,188.78,188.74,16.17464072]
[1760876604792,0.2,188.78,188.75,0.72]
[1760876605793,0.2,188.78,188.76,0.72]
[1760876606289,0.2,188.78,188.77,0.72]
[1760876606694,0.2,188.78,188.75,5.29799238]
[1760876606895,0.2,188.78,188.76,0.72]
[1760876607294,0.2,188.78,188.77,0.72]
[1760876608381,0.2,188.78,188.75,16.17421726]
[1760876608588,0.2,188.78,188.75,5.29774205]
[1760876608796,0.2,188.78,188.76,0.72]
[1760876609785,0.76,188.78,188.73,16.17492407]
[1760876610086,0.2,188.78,188.74,27.64]
[1760876612885,0.2,188.78,188.74,26.92]
[1760876613085,0.2,188.78,188.75,0.72]
[1760876613302,5.49727568,188.78,188.75,0.72]
[1760876614788,5.49727568,188.78,188.74,26.92]
[1760876615103,0.66218149,188.77,188.74,26.92]
[1760876615309,5.49727568,188.78,188.74,27.64]
[1760876615512,6.15942209,188.78,188.74,27.64]
[1760876615720,0.56,188.77,188.71,0.72]
[1760876615896,6.15942209,188.78,188.67,13.25000558]
[1760876615897,22.88,188.75,188.7,0.72]
[1760876616083,23.44,188.75,188.7,0.72]
[1760876616411,0.66228674,188.74,188.7,0.72]
[1760876617013,5.29857468,188.73,188.7,0.72]
[1760876617399,5.96089651,188.73,188.68,27.64]
[1760876617601,5.29857468,188.73,188.69,0.72]
[1760876618427,1.22235693,188.72,188.66,0.72]
[1760876618731,22.88,188.71,188.66,0.72]
[1760876618932,1.22242713,188.7,188.62,0.72]
[1760876619230,0.56,188.69,188.62,27.64]
[1760876619408,0.56,188.69,188.63,0.72]
[1760876620207,28.1799788,188.68,188.63,0.72]
[1760876620399,1.22253246,188.67,188.61,0.72]
[1760876620604,22.88,188.65,188.61,0.72]
[1760876621011,23.44,188.65,188.6,26.92]
[1760876621218,1.22253246,188.67,188.61,0.72]
[1760876622114,22.88,188.63,188.61,0.72]
[1760876623011,22.88,188.63,188.59,0.72]
[1760876624532,22.88,188.63,188.6,0.67]
[1760876624832,22.88,188.63,188.61,0.67]
[1760876625633,22.88,188.62,188.61,0.67]
[1760876625835,22.88,188.66,188.61,0.67]
[1760876626129,5.29998887,188.68,188.61,0.67]
[1760876626431,22.88,188.65,188.62,5.30166472]
[1760876626610,22.88,188.65,188.63,0.67]
[1760876627822,22.88,188.65,188.62,26.94]
[1760876628024,22.88,188.65,188.62,27.61]
[1760876629120,22.88,188.65,188.62,26.94]
[1760876629322,1.22263782,188.64,188.58,0.67]
[1760876629516,28.18091687,188.65,188.59,0.67]
[1760876630413,28.18091687,188.65,188.59,5.97244955]
[1760876630612,28.18091687,188.65,188.6,0.68]
[1760876631009,22.88,188.65,188.61,0.68]
[1760876632316,22.88,188.65,188.61,5.98185342]
[1760876632534,22.88,188.65,188.62,0.68]
[1760876632832,22.88,188.68,188.63,0.68]
[1760876633037,5.96184419,188.7,188.63,0.68]
[1760876633240,5.29941706,188.7,188.64,11.40658547]
[1760876633427,5.29941706,188.7,188.65,0.68]
[1760876634018,5.29941706,188.7,188.66,0.68]
[1760876634743,5.29941706,188.7,188.67,0.68]
[1760876634932,0.56,188.69,188.64,78.10765237]
[1760876635135,23.44,188.69,188.64,72.95647521]
[1760876635325,0.56,188.68,188.64,62.08]
[1760876635524,24.10246223,188.69,188.64,62.08]
[1760876636430,29.40227586,188.69,188.64,62.08]
[1760876636943,29.40227586,188.69,188.65,0.68]
[1760876637647,28.84227586,188.69,188.65,0.68]
[1760876637838,28.17981363,188.69,188.65,0.68]
[1760876638034,22.88,188.69,188.64,5.30097229]
[1760876638239,22.88,188.69,188.65,0.68]
[1760876639135,22.88,188.69,188.66,0.68]
[1760876639336,22.88,188.69,188.64,5.98097229]
[1760876639639,0.56,188.75,188.66,10.87647521]
[1760876639839,0.56,188.75,188.67,28.15002597]
[1760876640036,1.22228674,188.74,188.66,0.68]
[1760876640538,1.22228674,188.74,188.66,27.62]
[1760876640851,0.56,188.73,188.66,0.68]
[1760876641026,0.56,188.73,188.66,27.62]
[1760876641222,28.73882265,188.73,188.66,5.30047528]
[1760876641523,28.73882265,188.73,188.64,61.4]
[1760876641524,24.10235693,188.72,188.64,0.53011026]
[1760876641839,1.2605042,188.69,188.64,27.62]
[1760876642038,1.2605042,188.69,188.65,0.68]
[1760876642241,1.2605042,188.69,188.66,1.21005406]
[1760876642545,1.2605042,188.69,188.68,10.87647521]
[1760876642731,1.2605042,188.69,188.68,39.02647309]
[1760876642936,0.5405042,188.69,188.68,100.42647309]
[1760876643250,0.2,188.78,188.68,100.42647309]
[1760876643448,0.2,188.78,188.7,10.87647521]
[1760876643650,0.2,188.78,188.72,10.87647521]
[1760876643835,0.2,188.78,188.74,10.87647521]
[1760876644028,0.2,188.78,188.76,10.87647521]
[1760876644243,0.2,188.78,188.77,38.3462204]
[1760876644639,0.2,188.78,188.77,39.0262204]
[1760876645351,0.2,188.78,188.77,44.32367232]
[1760876645547,0.2,188.78,188.77,17.38367232]
[1760876645732,0.2,188.78,188.77,44.30367232]
[1760876648742,0.2,188.78,188.77,105.70367232]
[1760876651743,0.2,188.78,188.77,94.82719711]
[1760876651934,0.2,188.78,188.77,105.70367232]
[1760876654735,0.2,188.78,188.77,78.78367232]
[1760876654940,0.2,188.78,188.77,105.70367232]
[1760876655437,0.2,188.78,188.77,105.02367232]
[1760876656457,0.89,188.78,188.77,11.4062204]
[1760876656756,0.2,188.78,188.77,43.62367232]
[1760876658037,0.2,188.78,188.77,44.27367232]
[1760876658442,0.2,188.78,188.77,105.67367232]
[1760876659958,0.2,188.83,188.78,10.87647521]
[1760876660160,0.2,188.83,188.8,10.87647521]
[1760876660338,0.2,188.83,188.82,10.87647521]
[1760876661561,0.2,188.83,188.82,16.17252435]
[1760876662063,0.2,188.83,188.82,78.22252435]
[1760876663067,0.89,188.9,188.86,10.87647521]
[1760876663248,0.89,188.9,188.88,10.87647521]
[1760876663443,0.2,188.9,188.89,16.69997036]
[1760876664063,0.89,188.9,188.89,16.69997036]
[1760876664263,0.89,188.9,188.89,11.40588386]
[1760876664560,0.89,188.9,188.88,0.52943667]
[1760876664763,0.89,188.9,188.89,26.9]
[1760876666567,0.89,188.9,188.87,26.9]
[1760876666749,0.69,188.89,188.87,26.9]
[1760876666947,0.69,188.88,188.87,26.9]
[1760876668859,0.69,188.89,188.87,26.9]
[1760876669058,0.2,188.9,188.87,26.9]
[1760876669358,0.69,188.89,188.87,26.9]
[1760876669550,0.69,188.88,188.87,26.9]
[1760876672146,0.69,188.88,188.83,5.82534114]
[1760876672347,0.69,188.87,188.84,37.77647521]
[1760876672770,22.88,188.89,188.84,37.77647521]
[1760876672771,0.69,188.86,188.84,37.77647521]
[1760876672972,0.69,188.85,188.84,26.9]
[1760876673848,0.69,188.85,188.82,5.2960324]
[1760876674056,0.69,188.84,188.83,26.9]
[1760876676472,0.89,188.9,188.84,10.87647521]
[1760876676684,0.89,188.9,188.85,0.52952078]
[1760876676973,0.69,188.89,188.86,26.9]
[1760876677164,0.69,188.89,188.85,0.52952078]
[1760876677165,0.69,188.88,188.85,0.52952078]
[1760876677351,0.69,188.87,188.86,26.9]
[1760876677551,0.69,188.89,188.86,26.9]
[1760876678270,0.2,188.9,188.86,32.72424562]
[1760876678466,0.2,188.9,188.87,10.87647521]
[1760876678768,0.2,188.9,188.88,0.52943667]
[1760876679157,0.2,188.9,188.89,26.9]
[1760876680078,0.2,188.9,188.89,37.77647521]
[1760876680465,0.2,188.9,188.89,43.07056171]
[1760876680666,0.2,188.9,188.89,104.47056171]
[1760876681472,0.2,188.9,188.89,105.12056171]
[1760876681713,0.2,188.9,188.89,104.99997036]
[1760876682060,0.2,188.9,188.89,105.64997036]
[1760876683790,1e-08,188.91,188.9,33.75647521]
[1760876683966,1e-08,188.91,188.9,34.42647521]
[1760876684683,1e-08,188.91,188.9,39.72028145]
[1760876684882,0.2,188.94,188.9,114.35479706]
[1760876685062,0.2,188.94,188.93,33.75647521]
[1760876685263,0.2,189.02,188.94,10.87647521]
[1760876685472,0.2,189.02,188.94,11.54647521]
[1760876685677,0.2,189.02,188.95,12.07571574]
[1760876686780,0.2,189.02,188.95,17.36812113]
[1760876686984,0.9,189.02,188.95,17.36812113]
[1760876688188,0.9,189.02,188.96,10.87647521]
[1760876688393,0.2,189.02,188.96,38.44647521]
[1760876688896,0.9,189.01,188.96,38.44647521]
[1760876689183,0.7,189.0,188.96,37.77647521]
[1760876689394,0.9,188.99,188.96,26.9]
[1760876690293,0.9,188.99,188.96,5.29212531]
[1760876690788,0.2,188.99,188.96,43.04860052]
[1760876691184,0.2,188.99,188.96,43.57781305]
[1760876691994,0.2,188.99,188.96,44.24781305]
[1760876692588,0.2,188.99,188.96,104.97781305]
[1760876693899,0.9,188.99,188.96,104.97781305]
[1760876694797,0.9,188.97,188.96,99.68568774]
[1760876695002,0.2,188.97,188.96,99.68568774]
[1760876695795,0.9,188.97,188.96,99.68568774]
[1760876696193,0.9,188.97,188.96,99.15647521]
[1760876697592,0.9,188.97,188.96,72.27647521]
[1760876697902,0.2,188.97,188.96,99.15647521]
[1760876698101,0.9,188.97,188.96,99.15647521]
[1760876698477,0.9,188.97,188.96,26.88]
[1760876701808,0.9,188.97,188.95,26.88]
[1760876702101,0.7,188.96,188.95,26.88]
[1760876702508,0.7,188.96,188.94,61.4]
[1760876702800,0.7,188.95,188.94,61.4]
[1760876703004,0.7,188.95,188.93,26.88]
[1760876703307,0.7,188.94,188.93,26.88]
[1760876704499,0.2,188.97,188.93,32.70214685]
[1760876704684,0.9,188.97,188.93,33.37214685]
[1760876704884,0.7,188.96,188.93,32.70214685]
[1760876706101,0.7,188.95,188.93,32.70214685]
[1760876706307,0.7,188.95,188.93,32.17285029]
[1760876706606,0.7,188.94,188.93,26.88]
[1760876710098,0.7,188.94,188.91,26.88]
[1760876710299,0.68,188.93,188.91,26.88]
[1760876710508,0.68,188.92,188.91,26.88]
[1760876711098,0.68,188.92,188.84,97.51818591]
[1760876711302,0.68,188.91,188.85,26.88]
[1760876711526,0.68,188.9,188.83,10.87647521]
[1760876711685,0.68,188.89,188.84,26.88]
[1760876711890,0.68,188.88,188.85,26.88]
[1760876712189,0.68,188.87,188.85,26.88]
[1760876712410,0.68,188.86,188.85,26.88]
[1760876713419,5.97494373,188.86,188.83,26.88]
[1760876713619,0.68,188.85,188.83,26.88]
[1760876713823,5.95680966,188.86,188.83,26.88]
[1760876713824,0.66,188.84,188.83,26.88]
[1760876715516,0.66,188.92,188.84,10.87647521]
[1760876715692,0.66,188.91,188.85,1.20952078]
[1760876716013,0.66,188.91,188.86,26.9]
[1760876716199,23.54,188.9,188.86,26.9]
[1760876716724,0.66,188.95,188.88,16.17062899]
[1760876716921,22.88,188.93,188.89,26.9]
[1760876717107,22.88,188.93,188.89,27.58]
[1760876717294,22.88,188.93,188.89,26.9]
[1760876717497,1.32165572,188.92,188.89,26.9]
[1760876717703,0.66,188.91,188.89,26.9]
[1760876717927,0.66,188.9,188.89,26.9]
[1760876720401,28.17355069,188.91,188.89,26.9]
[1760876720402,22.88,188.91,188.89,26.9]
[1760876720611,0.66,188.93,188.89,26.9]
[1760876720810,0.66151566,188.96,188.89,27.58]
[1760876721015,0.66,188.95,188.89,27.58]
[1760876721322,28.8326726,188.95,188.89,33.40346729]
[1760876722716,28.1726726,188.95,188.89,32.87405864]
[1760876722918,6.61437062,188.94,188.83,13.23887884]
[1760876723219,22.88,188.91,188.85,10.87647521]
[1760876723402,23.54,188.91,188.85,11.55647521]
[1760876724298,5.95354761,188.91,188.85,16.85152971]
[1760876725126,0.66,188.91,188.85,16.85152971]
[1760876725617,0.66,188.91,188.86,0.52949274]
[1760876725928,0.66,188.91,188.87,26.9]
[1760876726224,5.95492635,188.92,188.87,26.9]
[1760876726516,0.66,188.91,188.87,26.9]
[1760876726696,0.66,188.9,188.87,26.9]
[1760876726900,0.66,188.89,188.87,26.9]
[1760876729321,5.95352892,188.91,188.87,26.9]
[1760876729625,23.54,188.91,188.87,26.9]
[1760876730007,23.54,188.91,188.87,27.58]
[1760876730324,28.8335944,188.91,188.87,26.9]
[1760876730927,0.66,188.9,188.87,26.9]
[1760876732508,28.1735944,188.91,188.87,26.9]
[1760876732830,0.66,188.9,188.86,0.52949274]
[1760876733027,0.66,188.89,188.84,0.68]
[1760876733827,0.66172578,188.9,188.85,0.68]
[1760876734037,28.8335944,188.91,188.86,0.68]
[1760876734264,28.8335944,188.91,188.87,0.68]
[1760876734608,28.8335944,188.91,188.85,26.9]
[1760876734609,1.32172578,188.9,188.85,26.9]
[1760876734810,0.66,188.89,188.82,16.17250302]
[1760876735046,0.66,188.88,188.84,26.9]
[1760876735227,0.66,188.87,188.84,26.9]
[1760876737338,5.2940865,188.89,188.85,0.68]
[1760876737508,22.88,188.89,188.86,0.68]
[1760876737710,0.66,188.92,188.87,0.68]
[1760876737711,1.32165572,188.92,188.87,0.68]
[1760876737913,23.54,188.91,188.87,0.68]
[1760876738125,0.66165572,188.92,188.85,10.87647521]
[1760876738330,5.29354287,188.91,188.85,11.55647521]
[1760876738532,28.17354287,188.91,188.85,16.85161437]
[1760876739520,6.61570613,188.9,188.85,0.68]
[1760876739735,0.66,188.89,188.83,0.68]
[1760876739927,5.95570613,188.9,188.84,27.58]
[1760876740319,5.95570613,188.9,188.85,0.68]
[1760876740532,6.61570613,188.9,188.85,0.68]
[1760876742739,0.66,188.89,188.85,0.68]
[1760876744436,5.95570613,188.9,188.84,32.19537717]
[1760876744638,0.7,188.89,188.84,32.87537717]
[1760876744836,0.7,188.92,188.85,12.08599599]
[1760876745040,5.29243898,188.95,188.87,10.87647521]
[1760876745243,5.29243898,188.95,188.88,28.10943667]
[1760876745442,5.29243898,188.95,188.89,0.68]
[1760876745753,5.99243898,188.95,188.89,0.68]
[1760876746256,6.65398965,188.95,188.89,5.97404386]
[1760876746750,0.7,188.94,188.89,5.97404386]
[1760876747552,0.7,188.93,188.88,32.72377875]
[1760876747854,0.7,188.92,188.88,33.40377875]
[1760876748056,0.7,188.94,188.89,0.68]
[1760876748844,5.95421498,188.95,188.89,0.68]
[1760876749137,0.7,188.93,188.89,0.68]
[1760876749944,5.95421498,188.95,188.89,5.97408563]
[1760876750251,0.7,188.94,188.89,5.97408563]
[1760876750443,0.7,188.93,188.89,5.97408563]
[1760876753261,5.29281625,188.94,188.9,0.68]
[1760876753437,0.7,188.93,188.88,94.80377297]
[1760876753850,0.7,188.92,188.88,94.80377297]
[1760876754261,5.95440193,188.94,188.88,94.12377297]
[1760876754463,6.65440193,188.94,188.88,94.80377297]
[1760876755764,5.95440193,188.94,188.88,94.80377297]
[1760876756061,0.7,188.93,188.88,61.4]
[1760876756260,1.36165572,188.92,188.88,61.4]
[1760876756467,0.7,188.91,188.88,61.4]
[1760876756652,0.7,188.9,188.87,26.9]
[1760876756842,22.88,188.91,188.85,27.58]
[1760876757043,0.7,188.9,188.85,32.87517863]
[1760876757242,0.7,188.9,188.86,0.68]
[1760876757442,0.7,188.9,188.86,27.58]
[1760876758648,5.99380859,188.9,188.86,27.58]
[1760876758844,6.65553437,188.9,188.86,27.58]
[1760876759046,5.99380859,188.9,188.86,27.58]
[1760876759445,0.7,188.89,188.86,26.9]
[1760876759846,0.7,188.89,188.84,0.68]
[1760876760053,0.7,188.89,188.85,27.58]
[1760876760545,5.95553437,188.9,188.86,0.68]
[1760876760747,5.95553437,188.9,188.83,10.87647521]
[1760876760748,0.7,188.89,188.83,10.87647521]
[1760876760948,0.7,188.89,188.84,26.9]
[1760876761256,0.7,188.89,188.84,27.58]
[1760876761451,0.7,188.88,188.84,27.58]
[1760876762141,6.65628726,188.88,188.84,27.58]
[1760876762345,0.7,188.87,188.83,26.9]
[1760876762746,1.36186593,188.86,188.83,26.9]
[1760876762962,23.58,188.85,188.8,0.68]
[1760876763163,1.36193603,188.84,188.81,26.9]
[1760876763369,0.7,188.84,188.81,26.9]
[1760876763547,23.58,188.84,188.81,26.9]
[1760876763862,0.7,188.84,188.81,26.9]
[1760876764254,5.99555515,188.84,188.81,26.9]
[1760876765863,23.58,188.83,188.81,26.9]
[1760876766057,0.7,188.82,188.78,26.9]
[1760876766373,5.99606083,188.82,188.78,27.58]
[1760876768271,22.88,188.83,188.79,0.68]
[1760876768461,28.17582594,188.83,188.79,0.68]
[1760876768664,28.17582594,188.83,188.8,0.68]
[1760876769378,28.17582594,188.83,188.78,27.58]
[1760876769576,28.87582594,188.83,188.78,27.58]
[1760876769777,28.87582594,188.83,188.78,26.9]
[1760876769953,28.87582594,188.83,188.78,27.58]
[1760876770374,5.96616343,188.82,188.78,27.58]
[1760876770769,5.29616343,188.82,188.78,27.58]
[1760876770970,5.29616343,188.82,188.79,0.68]
[1760876771273,22.88,188.83,188.8,0.68]
[1760876771465,22.88,188.83,188.81,0.68]
[1760876772373,22.88,188.83,188.79,11.55647521]
[1760876772571,22.88,188.83,188.8,0.68]
[1760876772779,5.29516862,188.86,188.81,27.58]
[1760876772961,28.17516862,188.86,188.82,0.68]
[1760876773165,5.96516862,188.86,188.82,0.68]
[1760876773368,28.84516862,188.86,188.82,0.68]
[1760876773675,28.84516862,188.86,188.81,26.9]
[1760876773878,28.84516862,188.86,188.81,27.58]
[1760876774474,0.69,188.85,188.81,27.58]
[1760876774673,28.86516862,188.86,188.81,27.58]
[1760876774972,0.69,188.85,188.81,27.58]
[1760876775154,5.98528069,188.85,188.81,27.58]
[1760876775352,22.88,188.86,188.83,10.87647521]
[1760876775556,5.29418861,188.89,188.84,27.58]
[1760876775756,5.29382895,188.9,188.85,0.68]
[1760876775957,28.86382895,188.9,188.86,0.68]
[1760876777058,5.98382895,188.9,188.86,0.68]
[1760876777281,5.95523632,188.91,188.87,0.68]
[1760876777661,28.83523632,188.91,188.87,0.68]
[1760876778069,29.52523632,188.91,188.85,0.68]
[1760876778359,22.88,188.88,188.83,72.27647521]
[1760876778562,1.35183088,188.87,188.83,61.4]
[1760876779060,0.69,188.86,188.83,61.4]
[1760876779260,0.69,188.85,188.83,61.4]
[1760876779566,0.69,188.85,188.82,26.9]
[1760876780078,0.69,188.84,188.82,26.9]
[1760876780287,0.69,188.84,188.81,26.9]
[1760876781365,5.29541861,188.85,188.81,26.9]
[1760876781574,6.64731958,188.85,188.81,26.9]
[1760876782373,0.69,188.84,188.81,26.9]
[1760876782572,5.95731958,188.85,188.81,26.9]
[1760876782777,0.69,188.84,188.81,26.9]
[1760876782985,0.69,188.83,188.81,26.9]
[1760876783186,5.95731958,188.85,188.81,26.9]
[1760876783368,0.69,188.83,188.81,26.9]
[1760876784499,0.69,188.82,188.76,72.27647521]
[1760876784670,0.69,188.82,188.77,26.9]
[1760876784867,0.69,188.82,188.77,27.58]
[1760876785387,0.69,188.82,188.77,0.68]
[1760876785573,23.57,188.81,188.78,26.9]
[1760876786266,0.69,188.81,188.78,26.9]
[1760876787298,28.83805528,188.82,188.78,26.9]
[1760876787475,29.52805528,188.82,188.78,26.9]
[1760876787881,0.69,188.81,188.78,26.9]
[1760876788093,28.83805528,188.82,188.78,26.9]
[1760876788269,29.52805528,188.82,188.78,26.9]
[1760876789591,5.98637588,188.81,188.75,0.68]
[1760876789771,0.66207627,188.8,188.76,26.9]
[1760876789974,1.35207627,188.8,188.76,27.58]
[1760876790578,5.95841708,188.81,188.77,0.68]
[1760876790981,6.64841708,188.81,188.77,0.68]
[1760876791388,5.29637588,188.81,188.76,26.9]
[1760876791909,5.98637588,188.81,188.77,0.68]
[1760876792286,5.98637588,188.81,188.76,26.9]
[1760876792487,5.98637588,188.81,188.76,27.58]
[1760876792683,5.98637588,188.81,188.77,0.68]
[1760876792875,22.88,188.82,188.77,0.68]
[1760876793074,22.88,188.82,188.76,32.1976245]
[1760876793075,28.17609854,188.82,188.78,0.68]
[1760876793275,0.69,188.81,188.77,10.87647521]
[1760876793575,0.69,188.81,188.77,11.55647521]
[1760876793791,28.17609854,188.82,188.78,0.68]
[1760876794900,28.86609854,188.82,188.78,0.68]
[1760876795094,22.88,188.82,188.79,0.68]
[1760876795294,22.88,188.82,188.79,27.58]
[1760876795474,21.21528267,188.87,188.81,10.87647521]
[1760876795680,5.29467345,188.87,188.82,28.10960491]
[1760876795877,1.35176081,188.89,188.83,11.55647521]
[1760876795878,5.29437472,188.88,188.83,11.55647521]
[1760876796082,0.66165572,188.92,188.82,27.42960491]
[1760876796083,5.98352601,188.91,188.84,1.20954882]
[1760876796288,5.29397593,188.9,188.85,27.58]
[1760876796593,28.17397593,188.9,188.86,0.68]
[1760876796818,22.88,188.88,188.87,0.68]
[1760876796975,22.88,188.88,188.85,27.58]
[1760876797492,22.88,188.88,188.86,0.68]
[1760876797870,22.88,188.88,188.85,26.9]
[1760876798076,22.88,188.88,188.85,27.58]
[1760876800120,22.88,188.88,188.86,0.68]
[1760876801090,0.69,188.91,188.86,0.68]
[1760876801404,0.69,188.91,188.86,5.97491269]
[1760876802990,0.69,188.91,188.86,0.68]
[1760876803392,0.69,188.9,188.86,0.68]
[1760876805519,0.69,188.94,188.87,11.40593992]
[1760876805721,0.69,188.94,188.89,10.87647521]
[1760876805898,22.88,188.95,188.91,10.87647521]
[1760876806099,1.55148065,188.97,188.92,26.9]
[1760876806414,0.2,188.97,188.93,0.72]
[1760876806618,0.2,188.97,188.94,11.59647521]
[1760876806794,0.2,188.97,188.95,27.42924053]
[1760876807219,0.2,188.97,188.95,28.14924053]
[1760876807698,0.2,188.97,188.96,0.72]
[1760876809103,0.2,188.97,188.95,32.72162341]
[1760876809613,0.2,188.97,188.95,33.44162341]
[1760876810294,0.2,188.97,188.95,28.14924053]
[1760876810490,0.69,188.96,188.95,26.88]
[1760876811095,0.2,188.97,188.95,26.88]
[1760876811302,0.69,188.96,188.95,26.88]
[1760876811520,0.2,188.97,188.95,26.88]
[1760876811833,0.89,188.97,188.95,26.88]
[1760876812123,0.2,188.97,188.95,26.88]
[1760876812293,0.69,188.96,188.95,26.88]
[1760876812499,5.98218368,188.96,188.9,0.72]
[1760876812701,5.98218368,188.96,188.91,26.88]
[1760876813000,1.35155067,188.95,188.91,26.88]
[1760876813217,0.69,188.94,188.91,26.88]
[1760876813516,0.69,188.93,188.91,26.88]
[1760876813690,0.69,188.94,188.91,26.88]
[1760876813894,6.6438787,188.96,188.91,27.6]
[1760876814419,0.69,188.95,188.91,27.6]
[1760876814817,0.69,188.95,188.91,26.88]
[1760876815120,0.69,188.94,188.91,26.88]
[1760876815714,0.69,188.93,188.91,26.88]
[1760876816627,0.69,188.92,188.87,6.0144303]
[1760876816805,5.95459584,188.93,188.88,26.88]
[1760876817006,0.69,188.92,188.88,26.88]
[1760876817223,0.69,188.91,188.88,26.88]
[1760876817405,23.57,188.9,188.88,26.88]
[1760876817736,23.57,188.9,188.86,26.88]
[1760876818303,23.57,188.9,188.86,27.6]
[1760876818734,23.57,188.9,188.86,26.88]
[1760876818735,0.69,188.89,188.86,26.88]
[1760876818940,0.69,188.88,188.84,10.87647521]
[1760876819234,0.69,188.88,188.85,26.88]
[1760876819924,0.69,188.87,188.8,0.72]
[1760876820225,1.35183088,188.87,188.81,37.75647521]
[1760876820422,0.69,188.86,188.81,37.75647521]
[1760876820597,0.69,188.86,188.81,38.47647521]
[1760876821516,6.64693025,188.86,188.81,27.6]
[1760876821709,0.69,188.85,188.81,26.88]
[1760876821919,22.88,188.83,188.81,26.88]
[1760876822126,23.57,188.83,188.79,10.87647521]
[1760876822300,23.57,188.83,188.79,26.88]
[1760876822612,0.69,188.82,188.79,26.88]
[1760876822930,28.17595745,188.83,188.79,26.88]
[1760876823115,0.69,188.82,188.79,26.88]
[1760876823513,28.17595745,188.83,188.79,26.88]
[1760876823823,0.69,188.82,188.79,26.88]
[1760876824420,0.69,188.84,188.79,26.88]
[1760876824620,0.66183088,188.87,188.81,10.87647521]
[1760876824925,28.17462999,188.88,188.82,28.12960491]
[1760876825105,28.17462999,188.88,188.83,0.72]
[1760876825305,5.29462999,188.88,188.84,0.72]
[1760876826134,23.57,188.87,188.82,89.52960491]
[1760876826430,0.69,188.86,188.82,88.28]
[1760876826830,0.69,188.85,188.78,0.72]
[1760876827009,0.66193603,188.84,188.78,10.87647521]
[1760876827212,0.69,188.83,188.78,37.75647521]
[1760876827414,0.66193603,188.84,188.79,0.72]
[1760876827612,1.35193603,188.84,188.8,0.72]
[1760876827807,6.64764896,188.84,188.78,99.87647521]
[1760876829622,22.88,188.81,188.77,0.72]
[1760876829820,22.88,188.79,188.77,0.72]
[1760876830430,22.88,188.79,188.77,0.71]
[1760876830816,22.88,188.79,188.76,26.92]
[1760876831020,5.95805528,188.82,188.76,26.92]
[1760876831021,22.88,188.8,188.76,27.63]
[1760876833435,22.88,188.83,188.77,11.58647521]
[1760876833631,22.88,188.81,188.78,26.92]
[1760876833950,0.7,188.8,188.78,26.92]
[1760876834233,22.88,188.81,188.78,26.92]
[1760876834444,1.36207627,188.8,188.78,26.92]
[1760876834612,6.65891779,188.8,188.75,0.68]
[1760876834808,6.65891779,188.8,188.75,27.6]
[1760876835134,22.88,188.77,188.74,0.1]